fUST/lending_fUST_20251011
["ID","MTS","AMOUNT","RATE_DAILY","PERIOD"]
[390740111,1760135440546,-151.0,0.00029498,30]
[390740112,1760135440556,-151.0,0.00029498,30]
[390740113,1760135440566,-151.0,0.00029498,30]
[390740114,1760135440576,-152.994985,0.00029498,30]
[390740115,1760135440586,-151.0,0.00029498,30]
[390740116,1760135440596,-203.107874,0.00029498,30]
[390740117,1760135440606,-154.59409,0.00029498,30]
[390740118,1760135440616,-151.0,0.00029498,30]
[390740119,1760135440626,-151.0,0.00029498,30]
[390740120,1760135440636,-151.0,0.00029498,30]
[390740121,1760135440645,-151.0,0.00029498,30]
[390740122,1760135440655,-151.0,0.00029498,30]
[390740123,1760135440665,-151.0,0.00029498,30]
[390740124,1760135440675,-151.0,0.00029498,30]
[390740125,1760135440686,-151.0,0.00029498,30]
[390740126,1760135440696,-174.522451,0.00029498,30]
[390740127,1760135440706,-151.0,0.00029498,30]
[390740128,1760135440716,-151.0,0.00029498,30]
[390740129,1760135440726,-151.0,0.00029498,30]
[390740130,1760135440735,-238.56724,0.00029498,30]
[390740131,1760135440745,-151.0,0.00029498,30]
[390740132,1760135440754,-151.0,0.00029498,30]
[390740133,1760135440763,-151.0,0.00029498,30]
[390740134,1760135440773,-151.0,0.00029498,30]
[390740135,1760135440783,-151.0,0.00029498,30]
[390740136,1760135440792,-151.0,0.00029498,30]
[390740137,1760135440802,-151.0,0.00029498,30]
[390740138,1760135440814,-151.0,0.00029498,30]
[390740139,1760135440823,-151.0,0.00029498,30]
[390740140,1760135440832,-151.0,0.00029498,30]
[390740141,1760135440842,-151.0,0.00029498,30]
[390740142,1760135440853,-151.0,0.00029498,30]
[390740143,1760135440863,-293.234204,0.00029498,30]
[390740144,1760135440873,-151.0,0.00029498,30]
[390740145,1760135440883,-155.037749,0.00029498,30]
[390740146,1760135440892,-151.506493,0.00029498,30]
[390740147,1760135440902,-151.0,0.00029498,30]
[390740148,1760135440913,-152.24932598,0.00029498,30]
[390740149,1760135440926,-151.0,0.00029498,30]
[390740150,1760135440936,-1784181.9233916,0.000295,120]
[390740151,1760135440947,-526.02426037,0.000295,120]
[390740152,1760135440958,-477.87043074,0.000295,120]
[390740153,1760135440968,-151.0,0.000295,18]
[390740154,1760135440977,-151.0,0.000295,11]
[390740155,1760135440986,-151.0,0.000295,14]
[390740156,1760135440996,-151.0,0.000295,20]
[390740157,1760135441007,-151.0,0.000295,12]
[390740158,1760135441017,-151.0,0.000295,11]
[390740159,1760135441028,-151.0,0.000295,20]
[390740160,1760135441037,-13004.0,0.000295,2]
[390740161,1760135441047,-1500.0,0.000295,2]
[390740162,1760135441057,-200.0,0.00029502,120]
[390740163,1760135441067,-174.30753802,0.00029502,30]
[390740164,1760135441076,-175.900761,0.00029503,30]
[390740165,1760135441086,-175.900761,0.00029503,30]
[390740166,1760135441096,-175.900761,0.00029503,30]
[390740167,1760135441106,-175.900761,0.00029503,30]
[390740168,1760135441116,-175.900761,0.00029503,30]
[390740169,1760135441126,-175.900761,0.00029503,30]
[390740170,1760135441136,-175.900761,0.00029503,30]
[390740171,1760135441145,-175.900761,0.00029503,30]
[390740172,1760135441155,-175.900761,0.00029503,30]
[390740173,1760135441164,-175.900761,0.00029503,30]
[390740174,1760135441174,-175.900761,0.00029503,30]
[390740175,1760135441183,-175.900761,0.00029503,30]
[390740176,1760135441193,-175.900761,0.00029503,30]
[390740177,1760135441202,-175.900761,0.00029503,30]
[390740178,1760135441212,-175.900761,0.00029503,30]
[390740179,1760135441347,-175.900761,0.00029503,30]
[390740180,1760135441357,-175.900761,0.00029503,30]
[390740181,1760135441366,-175.900761,0.00029503,30]
[390740182,1760135441375,-175.900761,0.00029503,30]
[390740183,1760135441385,-175.900755,0.00029503,30]
[390740184,1760135441394,-151.0,0.00029503,30]
[390740185,1760135441404,-151.0,0.00029503,30]
[390740186,1760135441414,-151.0,0.00029503,30]
[390740187,1760135441423,-151.0,0.00029503,30]
[390740189,1760135441433,-151.0,0.00029503,30]
[390740190,1760135441442,-151.0,0.00029503,30]
[390740191,1760135441453,-151.0,0.00029503,30]
[390740192,1760135441463,-250.44272072,0.00029503,30]
[390740193,1760135441472,-151.0,0.00029503,30]
[390740194,1760135441482,-151.0,0.00029503,30]
[390740195,1760135441492,-191.226415,0.00029503,30]
[390740196,1760135441501,-151.0,0.00029503,30]
[390740198,1760135441510,-151.0,0.00029503,30]
[390740199,1760135441519,-151.0,0.00029503,30]
[390740200,1760135441528,-151.0,0.00029503,30]
[390740201,1760135441537,-285.647688,0.00029503,30]
[390740202,1760135441546,-151.0,0.00029503,30]
[390740204,1760135441557,-151.0,0.00029503,30]
[390740206,1760135441567,-277.669671,0.00029503,30]
[390740208,1760135441576,-151.0,0.00029503,30]
[390740210,1760135441585,-151.0,0.00029503,30]
[390740212,1760135441594,-151.0,0.00029503,30]
[390740214,1760135441604,-151.0,0.00029503,30]
[390740216,1760135441613,-151.0,0.00029503,30]
[390740218,1760135441622,-151.0,0.00029503,30]
[390740220,1760135441631,-151.0,0.00029503,30]
[390740222,1760135441640,-151.0,0.00029503,30]
[390740224,1760135441649,-151.0,0.00029503,30]
[390740226,1760135441658,-151.0,0.00029503,30]
[390740228,1760135441667,-151.0,0.00029503,30]
[390740230,1760135441676,-151.0,0.00029503,30]
[390740232,1760135441685,-151.0,0.00029503,30]
[390740234,1760135441694,-151.0,0.00029503,30]
[390740236,1760135441703,-151.0,0.00029503,30]
[390740237,1760135441712,-151.0,0.00029503,30]
[390740239,1760135441721,-151.0,0.00029503,30]
[390740240,1760135441731,-151.0,0.00029503,30]
[390740241,1760135441740,-151.0,0.00029503,30]
[390740242,1760135441750,-247.979526,0.00029503,30]
[390740243,1760135441760,-151.0,0.00029503,30]
[390740244,1760135441769,-151.0,0.00029503,30]
[390740245,1760135441780,-151.0,0.00029503,30]
[390740247,1760135441789,-151.0,0.00029503,30]
[390740248,1760135441798,-151.0,0.00029503,30]
[390740250,1760135441808,-151.0,0.00029503,30]
[390740251,1760135441818,-151.0,0.00029503,30]
[390740252,1760135441827,-151.0,0.00029503,30]
[390740253,1760135441837,-151.0,0.00029503,30]
[390740254,1760135441847,-151.0,0.00029503,30]
[390740255,1760135441856,-151.0,0.00029503,30]
[390740256,1760135441866,-151.0,0.00029503,30]
[390740257,1760135441875,-151.0,0.00029503,30]
[390740258,1760135441885,-151.0,0.00029503,30]
[390740259,1760135441894,-151.0,0.00029503,30]
[390740260,1760135441903,-151.0,0.00029503,30]
[390740261,1760135441913,-151.0,0.00029503,30]
[390740262,1760135441923,-151.0,0.00029503,30]
[390740263,1760135441934,-151.0,0.00029503,30]
[390740264,1760135441943,-151.0,0.00029503,30]
[390740265,1760135441953,-232.00524239,0.00029503,30]
[390740266,1760135441962,-151.0,0.00029503,30]
[390740267,1760135441974,-151.0,0.00029503,30]
[390740268,1760135441983,-151.0,0.00029503,30]
[390740269,1760135441992,-151.0,0.00029503,30]
[390740270,1760135442003,-151.0,0.00029503,30]
[390740271,1760135442012,-151.0,0.00029503,30]
[390740272,1760135442021,-151.0,0.00029503,30]
[390740273,1760135442031,-151.0,0.00029503,2]
[390740274,1760135442040,-151.0,0.00029503,2]
[390740275,1760135442050,-151.379721,0.00029503,30]
[390740276,1760135442061,-151.638162,0.00029503,30]
[390740277,1760135442069,-222.332284,0.00029503,30]
[390740278,1760135442079,-151.0,0.00029503,30]
[390740279,1760135442088,-151.0,0.00029503,30]
[390740280,1760135442098,-151.995228,0.00029503,30]
[390740281,1760135442107,-170.783074,0.00029503,7]
[390740282,1760135442116,-151.0,0.00029503,30]
[390740283,1760135442126,-151.0,0.00029503,30]
[390740284,1760135442135,-151.859235,0.00029503,30]
[390740285,1760135442144,-151.0,0.00029503,30]
[390740286,1760135442153,-151.0,0.00029503,30]
[390740287,1760135442162,-151.0,0.00029503,30]
[390740288,1760135442171,-151.0,0.00029503,30]
[390740289,1760135442180,-151.0,0.00029503,30]
[390740290,1760135442189,-151.0,0.00029503,30]
[390740291,1760135442198,-151.0,0.00029503,30]
[390740292,1760135442208,-200.570123,0.00029503,30]
[390740293,1760135442218,-151.0,0.00029503,30]
[390740294,1760135442227,-151.0,0.00029503,30]
[390740295,1760135442240,-151.0,0.00029503,30]
[390740296,1760135442250,-151.0,0.00029503,30]
[390740297,1760135442260,-151.0,0.00029503,30]
[390740298,1760135442269,-151.0,0.00029503,30]
[390740299,1760135442279,-151.0,0.00029503,30]
[390740300,1760135442288,-151.0,0.00029503,30]
[390740301,1760135442298,-151.0,0.00029503,30]
[390740302,1760135442309,-284.769023,0.00029503,30]
[390740303,1760135442319,-151.0,0.00029503,30]
[390740304,1760135442328,-151.0,0.00029503,30]
[390740305,1760135442338,-151.0,0.00029503,30]
[390740306,1760135442347,-151.0,0.00029503,30]
[390740307,1760135442357,-151.0,0.00029503,30]
[390740308,1760135442366,-151.0,0.00029503,15]
[390740309,1760135442376,-151.0,0.00029503,15]
[390740310,1760135442386,-151.0,0.00029503,30]
[390740311,1760135442396,-151.0,0.00029503,30]
[390740312,1760135442405,-151.0,0.00029503,30]
[390740313,1760135442415,-206.107839,0.00029503,30]
[390740314,1760135442425,-151.0,0.00029503,30]
[390740315,1760135442435,-151.0,0.00029503,30]
[390740316,1760135442444,-151.0,0.00029503,30]
[390740317,1760135442453,-151.0,0.00029503,30]
[390740318,1760135442462,-151.0,0.00029503,30]
[390740319,1760135442471,-291.819946,0.00029503,30]
[390740320,1760135442480,-291.819946,0.00029503,30]
[390740321,1760135442489,-291.819946,0.00029503,30]
[390740322,1760135442499,-291.819946,0.00029503,30]
[390740323,1760135442508,-291.819946,0.00029503,30]
[390740324,1760135442517,-291.819946,0.00029503,30]
[390740325,1760135442526,-291.819946,0.00029503,30]
[390740327,1760135442535,-291.819946,0.00029503,30]
[390740328,1760135442545,-291.819946,0.00029503,30]
[390740329,1760135442554,-291.819946,0.00029503,30]
[390740330,1760135442565,-291.819946,0.00029503,30]
[390740332,1760135442575,-291.819946,0.00029503,30]
[390740333,1760135442584,-291.819946,0.00029503,30]
[390740335,1760135442594,-291.819946,0.00029503,30]
[390740337,1760135442604,-291.819946,0.00029503,30]
[390740339,1760135442613,-291.819946,0.00029503,30]
[390740341,1760135442623,-291.819946,0.00029503,30]
[390740343,1760135442632,-291.819946,0.00029503,30]
[390740345,1760135442641,-291.819946,0.00029503,30]
[390740347,1760135442650,-291.819946,0.00029503,30]
[390740349,1760135442660,-151.0,0.00029503,30]
[390740352,1760135442669,-1565852.13249008,0.00029504,20]
[390740354,1760135442678,-161348.01202113,0.00029504,20]
[390740357,1760135442687,-50003.86705759,0.00029504,5]
[390740360,1760135442696,-81713.36950141,0.00029504,20]
[390740365,1760135442714,-363997.77877822,0.00029504,20]
[390740367,1760135442723,-2099927.97408427,0.00029504,20]
[390740369,1760135442732,-194.85215305,0.00029504,12]
[390740371,1760135442742,-1308173.15658964,0.00029504,20]
[390740418,1760135443201,-893.03690631,0.00027786,10]
[390740420,1760135443212,-1275.56309369,0.00027786,10]
[390740422,1760135443222,-500.0,0.00029475,11]
[390740424,1760135443231,-18826.13055631,0.00029504,20]
[390740433,1760135443322,-9495.199253,0.00029504,20]
[390740435,1760135443333,-19486.17905155,0.00029504,20]
[390740437,1760135443344,-56766.4874893,0.00029504,20]
[390740508,1760135444066,-600.2891076,0.00029504,20]
[390740511,1760135444077,-22800.0005,0.00029504,20]
[390740704,1760135446136,-500.0,0.00022999,2]
[390740706,1760135446157,-428.20689757,0.00029168,2]
[390740715,1760135446262,-11961.421,0.00029168,2]
[390745524,1760135618473,1000.0,0.00028767,120]
[390745539,1760135779403,1065.0,0.00028767,120]
[390745581,1760135923493,472.582689,0.00013699,2]
[390745620,1760136178621,-626.28537634,0.000167,2]
[390745621,1760136178648,-886.76490991,0.00016731,2]
[390745622,1760136178674,-419.31226135,0.000168,2]
[390745623,1760136178699,-500.0,0.000169,2]
[390745624,1760136178725,-151.0,0.00017,2]
[390745625,1760136178752,-296.16057966,0.00017,2]
[390745627,1760136368800,459.8,0.00028767,120]
[390745632,1760136565606,-151.0,0.00017,2]
[390745633,1760136565633,-150.0,0.00017,2]
[390745905,1760136638301,-246.94373774,0.00016983,7]
[390745907,1760136638312,-150.0,0.00016983,7]
[390745910,1760136638324,-500.0,0.00017,2]
[390745911,1760136638334,-151.0,0.00017157,2]
[390745914,1760136638344,-151.0,0.00017314,2]
[390745916,1760136638357,-151.0,0.00017471,2]
[390745918,1760136638371,-172.5,0.000176,2]
[390745920,1760136638385,-151.0,0.00017628,2]
[390745922,1760136638396,-151.0,0.00017785,2]
[390745924,1760136638406,-628.24264325,0.00017808,2]
[390745926,1760136638417,-151.0,0.00017942,2]
[390745928,1760136638427,-176.266078,0.00018043,2]
[390745930,1760136638437,-300.0,0.00018098,2]
[390745932,1760136638447,-1200.0,0.00018098,2]
[390745934,1760136638457,-48550.95540886,0.00018099,2]
[390745936,1760136638468,-151.0,0.000181,2]
[390745938,1760136638481,-168.30076101,0.000181,2]
[390745940,1760136638492,-195.0,0.000182,2]
[390745942,1760136638502,-150.0,0.00018747,2]
[390745944,1760136638513,-217.5,0.000188,2]
[390745946,1760136638524,-420.0,0.00019745,2]
[390745948,1760136638533,-1200.0,0.00019842,2]
[390745950,1760136638544,-472.582689,0.00020187,2]
[390745952,1760136638553,-150.0,0.00020451,2]
[390745954,1760136638563,-177.90835514,0.000205,2]
[390745956,1760136638573,-204.28177558,0.000205,2]
[390745958,1760136638584,-314.0,0.00020645,2]
[390745960,1760136638594,-177.90835514,0.000207,2]
[390745962,1760136638604,-177.90835514,0.000209,2]
[390745964,1760136638614,-222.0,0.00021542,2]
[390745966,1760136638624,-180.43,0.00022155,2]
[390745968,1760136638640,-240.58,0.0002386,2]
[390745970,1760136638649,-230.448,0.00024188,6]
[390745972,1760136638660,-160.0,0.00024479,2]
[390745974,1760136638670,-200.0,0.00024658,15]
[390745977,1760136638680,-300.72,0.00025564,2]
[390745978,1760136638690,-371.994477,0.00025999,2]
[390745981,1760136638701,-500.0,0.0002649,2]
[390745983,1760136638711,-666.0,0.00026538,2]
[390745985,1760136638722,-472.582689,0.00026676,2]
[390745987,1760136638733,-360.87,0.00027268,2]
[390745989,1760136638743,-500.0,0.00027397,60]
[390745991,1760136638753,-1107.13,0.00027397,60]
[390745993,1760136638765,-1107.13,0.00027397,60]
[390745995,1760136638775,-500.0,0.00027397,60]
[390745997,1760136638787,-500.0,0.00027397,60]
[390745999,1760136638798,-500.0,0.00027397,60]
[390746001,1760136638809,-500.0,0.00027397,2]
[390746003,1760136638820,-598.0,0.00027554,2]
[390746005,1760136638830,-168.0,0.00027566,2]
[390746007,1760136638840,-168.0,0.00027697,2]
[390746009,1760136638851,-337.99514708,0.00027747,2]
[390746011,1760136638861,-598.0,0.00027748,2]
[390746013,1760136638871,-168.0,0.00027764,2]
[390746015,1760136638883,-1107.13,0.00027794,60]
[390746017,1760136638893,-168.0,0.00027882,2]
[390746019,1760136638903,-168.0,0.00027919,2]
[390746021,1760136638912,-598.0,0.00028009,2]
[390746023,1760136638922,-600.0,0.00028058,7]
[390746025,1760136638934,-168.0,0.00028112,2]
[390746027,1760136638943,-168.0,0.0002832,2]
[390746029,1760136638953,-334.1674075,0.000285,5]
[390746031,1760136638963,-500.0,0.00028682,7]
[390746033,1760136638973,-300.0,0.000287,2]
[390746035,1760136638982,-980.23029695,0.0002876,2]
[390746037,1760136638992,-500.0,0.00028869,60]
[390746039,1760136639002,-17456.0,0.0002887,7]
[390746041,1760136639012,-168.0,0.00028894,2]
[390746043,1760136639022,-1813.18,0.00028938,10]
[390746045,1760136639033,-1161.3,0.00028945,10]
[390746047,1760136639043,-357.97819469,0.00028946,2]
[390746049,1760136639053,-500.0,0.00028946,2]
[390746051,1760136639063,-500.0,0.00028946,2]
[390746053,1760136639072,-314.46430987,0.00028946,2]
[390746055,1760136639082,-500.0,0.00028946,2]
[390746057,1760136639092,-304.2109064,0.00028946,2]
[390746059,1760136639102,-587.06470252,0.00028946,2]
[390746061,1760136639112,-500.0,0.00028946,2]
[390746063,1760136639121,-243.92540022,0.00028946,2]
[390746065,1760136639133,-500.0,0.00028946,2]
[390746067,1760136639143,-500.0,0.00028946,2]
[390746069,1760136639153,-500.0,0.00028946,2]
[390746071,1760136639163,-293.67903139,0.00028946,2]
[390746073,1760136639173,-980.0,0.00028948,2]
[390746075,1760136639183,-2159.0,0.00028948,2]
[390746077,1760136639193,-630.0,0.00028948,2]
[390746079,1760136639203,-168.0,0.00028955,2]
[390746081,1760136639213,-133856.765709,0.0002897,2]
[390746083,1760136639223,-4157.79191078,0.0002897,2]
[390746085,1760136639236,-421.01,0.00028972,2]
[390746087,1760136639247,-100000.0,0.0002899,2]
[390746089,1760136639258,-1050.27,0.00029,2]
[390746091,1760136639273,-298.03512572,0.00029022,2]
[390746093,1760136639288,-419.94439877,0.00029048,2]
[390746096,1760136639307,-598.0,0.0002911,7]
[390746098,1760136639325,-912.72,0.00029138,3]
[390746100,1760136639338,-603.58,0.00029138,3]
[390746103,1760136639355,-301.79,0.00029138,3]
[390746106,1760136639371,-150.89,0.00029138,3]
[390746108,1760136639387,-452.7,0.00029138,3]
[390746111,1760136639403,-419.94439873,0.00029138,2]
[390746113,1760136639420,-500.0,0.00029147,60]
[390746116,1760136639434,-500.0,0.00029147,60]
[390746118,1760136639450,-500.0,0.00029147,60]
[390746121,1760136639463,-500.0,0.00029147,60]
[390746123,1760136639478,-500.0,0.00029147,60]
[390746126,1760136639491,-500.0,0.00029147,60]
[390746128,1760136639502,-220.91627546,0.00029147,60]
[390746130,1760136639516,-8954.21,0.00029147,2]
[390746133,1760136639531,-425.01,0.00029148,3]
[390746135,1760136639544,-212.5,0.00029148,3]
[390746138,1760136639559,-637.53,0.00029148,3]
[390746140,1760136639574,-1107.13,0.00029158,60]
[390746143,1760136639590,-1107.13,0.00029158,60]
[390746145,1760136639601,-1107.13,0.00029158,60]
[390746147,1760136639613,-1107.13,0.00029158,60]
[390746150,1760136639630,-1107.13,0.00029158,60]
[390746152,1760136639645,-1107.13,0.00029158,60]
[390746155,1760136639657,-1107.13,0.00029158,60]
[390746157,1760136639669,-133856.765709,0.00029158,2]
[390746160,1760136639684,-4157.79191078,0.00029158,2]
[390746162,1760136639695,-500.0,0.00029158,10]
[390746164,1760136639706,-4195.0,0.00029165,2]
[390746166,1760136639718,-300.0,0.00029167,2]
[390746169,1760136639731,-1107.13,0.00029167,60]
[390746172,1760136639749,-1107.13,0.00029167,60]
[390746174,1760136639762,-33588.96229232,0.00029168,2]
[390746176,1760136639775,-168.0,0.00029171,2]
[390746181,1760136639805,-500.0,0.00029173,2]
[390746184,1760136639824,-500.0,0.00029173,5]
[390746186,1760136639844,-500.0,0.00029173,5]
[390746189,1760136639860,-500.0,0.00029173,5]
[390746193,1760136639880,-500.0,0.00029173,5]
[390746196,1760136639896,-500.0,0.00029173,5]
[390746199,1760136639912,-500.0,0.00029173,5]
[390746201,1760136639927,-500.0,0.00029173,5]
[390746203,1760136639942,-500.0,0.00029173,5]
[390746206,1760136639956,-500.0,0.00029173,5]
[390746208,1760136639969,-1050.27,0.00029174,2]
[390746211,1760136639982,-419.94439873,0.00029228,2]
[390746213,1760136639996,-500.0,0.00029238,2]
[390746216,1760136640009,-322.0,0.00029271,2]
[390746218,1760136640022,-500.0,0.00029293,2]
[390746221,1760136640036,-419.94439873,0.00029318,2]
[390746223,1760136640049,-454.87937848,0.00029348,2]
[390746225,1760136640062,-2441.14893909,0.00029348,2]
[390746228,1760136640076,-1050.27,0.00029348,2]
[390746230,1760136640089,-500.54606732,0.00029373,5]
[390746233,1760136640101,-500.0,0.00029373,5]
[390746235,1760136640115,-500.0,0.00029373,5]
[390746237,1760136640127,-500.0,0.00029373,5]
[390746239,1760136640141,-500.0,0.00029373,5]
[390746242,1760136640153,-500.0,0.00029373,5]
[390746244,1760136640167,-500.0,0.00029373,5]
[390746247,1760136640179,-500.0,0.00029373,5]
[390746249,1760136640192,-500.0,0.00029373,3]
[390746251,1760136640205,-500.0,0.00029373,2]
[390746254,1760136640218,-500.0,0.00029373,5]
[390746256,1760136640230,-133856.765709,0.00029378,2]
[390746258,1760136640243,-4157.79191078,0.00029378,2]
[390746261,1760136640256,-1107.13,0.00029386,60]
[390746263,1760136640270,-1107.13,0.00029386,60]
[390746265,1760136640285,-1107.13,0.00029386,60]
[390746268,1760136640298,-1107.13,0.00029386,60]
[390746270,1760136640314,-1107.13,0.00029386,60]
[390746273,1760136640328,-1107.13,0.00029386,60]
[390746275,1760136640341,-1107.13,0.00029386,60]
[390746277,1760136640353,-1107.13,0.00029386,60]
[390746280,1760136640367,-1107.13,0.00029386,60]
[390746282,1760136640382,-1107.13,0.00029386,60]
[390746284,1760136640394,-1107.13,0.00029386,60]
[390746287,1760136640407,-1107.19555809,0.00029386,60]
[390746289,1760136640419,-28736.67362213,0.00029388,3]
[390746291,1760136640432,-245.0,0.00029393,2]
[390746294,1760136640445,-500.0,0.00029394,10]
[390746296,1760136640459,-133856.765709,0.00029398,2]
[390746298,1760136640473,-4157.79191078,0.00029398,2]
[390746301,1760136640486,-151.0,0.000294,19]
[390746303,1760136640500,-250.0,0.000294,10]
[390746305,1760136640512,-70850.69245281,0.00029408,2]
[390746306,1760136640525,-419.94439873,0.00029408,2]
[390746307,1760136640537,-406.87482318,0.00029422,30]
[390746308,1760136640549,-369.67,0.00029432,10]
[390746309,1760136640562,-4157.79191078,0.00029434,2]
[390746310,1760136640574,-315.25993078,0.00029443,2]
[390746311,1760136640587,-1586.8079,0.00029444,2]
[390746312,1760136640600,-563.72179404,0.00029469,2]
[390746313,1760136640614,-2252.63228899,0.00029469,2]
[390746314,1760136640630,-726.83749755,0.00029469,2]
[390746315,1760136640644,-500.0,0.00029473,5]
[390746316,1760136640659,-500.0,0.00029473,5]
[390746317,1760136640672,-552.88844342,0.00029473,5]
[390746318,1760136640686,-500.0,0.00029473,5]
[390746319,1760136640698,-163.1597617,0.00029473,5]
[390746320,1760136640711,-500.0,0.00029473,5]
[390746321,1760136640723,-526.99050105,0.00029473,5]
[390746322,1760136640735,-500.0,0.00029473,5]
[390746323,1760136640750,-500.0,0.00029478,11]
[390746324,1760136640760,-500.0,0.00029478,11]
[390746325,1760136640770,-4157.79191078,0.00029486,2]
[390746326,1760136640784,-12473.3757323,0.00029488,2]
[390746327,1760136640794,-155.188083,0.00029494,20]
[390746328,1760136640804,-406.87482318,0.00029496,30]
[390746358,1760136641071,-3381.3266829,0.00029496,2]
[390746361,1760136641087,-12184.0877567,0.00029496,2]
[390746363,1760136641097,-241.103817,0.00029497,30]
[390746365,1760136641106,-151.0,0.00029497,30]
[390746367,1760136641115,-151.0,0.00029497,30]
[390746369,1760136641125,-151.412318,0.00029497,30]
[390746371,1760136641137,-323.67441,0.00029497,30]
[390746373,1760136641146,-323.67441,0.00029497,30]
[390746375,1760136641156,-323.67441,0.00029497,30]
[390746377,1760136641165,-323.67441,0.00029497,30]
[390746379,1760136641175,-323.67441,0.00029497,30]
[390746381,1760136641184,-323.67441,0.00029497,30]
[390746383,1760136641193,-323.67441,0.00029497,30]
[390746385,1760136641202,-323.67441,0.00029497,30]
[390746387,1760136641212,-323.67441,0.00029497,30]
[390746389,1760136641222,-323.67441,0.00029497,30]
[390746391,1760136641232,-323.67441,0.00029497,30]
[390746393,1760136641242,-323.67441,0.00029497,30]
[390746395,1760136641251,-323.67441,0.00029497,30]
[390746397,1760136641260,-323.67441,0.00029497,30]
[390746399,1760136641271,-323.67441,0.00029497,30]
[390746401,1760136641282,-323.67441,0.00029497,30]
[390746403,1760136641291,-323.67441,0.00029497,30]
[390746405,1760136641300,-323.67441,0.00029497,30]
[390746407,1760136641313,-323.67441,0.00029497,30]
[390746409,1760136641322,-323.674413,0.00029497,30]
[390746411,1760136641331,-151.573119,0.00029497,30]
[390746412,1760136641339,-151.0,0.00029497,30]
[390746414,1760136641349,-151.0,0.00029497,30]
[390746417,1760136641359,-151.0,0.00029497,30]
[390746419,1760136641368,-151.0,0.00029497,30]
[390746420,1760136641380,-151.0,0.00029497,30]
[390746422,1760136641390,-151.0,0.00029497,30]
[390746425,1760136641399,-190.58147998,0.00029497,30]
[390746427,1760136641408,-151.0,0.00029497,30]
[390746429,1760136641418,-151.0,0.00029497,30]
[390746430,1760136641428,-151.0,0.00029497,30]
[390746432,1760136641437,-151.0,0.00029497,30]
[390746434,1760136641447,-151.0,0.00029497,30]
[390746436,1760136641456,-151.0,0.00029497,30]
[390746438,1760136641466,-151.0,0.00029497,30]
[390746440,1760136641476,-151.0,0.00029497,30]
[390746442,1760136641486,-151.0,0.00029497,30]
[390746444,1760136641496,-151.0,0.00029497,30]
[390746446,1760136641505,-151.0,0.00029497,30]
[390746449,1760136641515,-151.0,0.00029497,30]
[390746450,1760136641524,-240.590188,0.00029497,30]
[390746452,1760136641533,-151.0,0.00029497,30]
[390746454,1760136641543,-151.0,0.00029497,30]
[390746456,1760136641552,-151.0,0.00029497,30]
[390746459,1760136641562,-151.0,0.00029497,30]
[390746461,1760136641571,-151.0,0.00029497,30]
[390746462,1760136641580,-151.0,0.00029497,30]
[390746464,1760136641590,-12473.3757323,0.00029498,2]
[390746467,1760136641599,-151.0,0.00029498,30]
[390746469,1760136641609,-151.0,0.00029498,30]
[390746470,1760136641618,-151.0,0.00029498,30]
[390746472,1760136641629,-151.0,0.00029498,30]